bitfinex-derivatives/quotes_SOLF0:USTF0_20251002
["timestamp","ask_amount","ask_price","bid_price","bid_amount"]
[1759405240274,9.20057115,225.33,225.25,7.33]
[1759405240478,4.24883368,225.32,225.25,7.33]
[1759405240773,1.10897964,225.31,225.27,7.33]
[1759405240976,1.10897964,225.3,225.27,3.9931]
[1759405241275,3.13962108,225.34,225.28,8.69057115]
[1759405241474,1.10889284,225.33,225.28,8.69057115]
[1759405241675,1.10889284,225.32,225.28,8.69057115]
[1759405241875,1.10889284,225.31,225.28,1.36057115]
[1759405242076,3.13964604,225.34,225.28,1.36057115]
[1759405242377,1.10889221,225.33,225.28,1.36057115]
[1759405242574,1.10889221,225.32,225.29,3.9928]
[1759405242875,1.10889221,225.31,225.3,7.33]
[1759405244477,3.14957513,225.35,225.3,7.33]
[1759405244676,8.94882634,225.34,225.3,7.33]
[1759405244970,1.10882634,225.33,225.28,1.36057115]
[1759405245171,1.10882634,225.32,225.29,7.33]
[1759405245372,7.84,225.35,225.29,7.33]
[1759405245573,8.94882571,225.34,225.28,1.36057115]
[1759405245774,1.10882571,225.33,225.29,7.33]
[1759405245973,1.10882571,225.32,225.28,5.35347115]
[1759405246178,7.84,225.34,225.28,5.35347115]
[1759405246476,1.10882571,225.33,225.29,7.33]
[1759405246667,1.10882571,225.32,225.29,7.33]
[1759405246977,7.84,225.34,225.28,5.35347115]
[1759405247279,1.10877596,225.33,225.29,7.33]
[1759405247577,1.10877596,225.32,225.28,5.35347115]
[1759405247777,7.84,225.34,225.29,7.33]
[1759405247974,1.10879171,225.33,225.28,5.35347115]
[1759405248274,1.10879171,225.32,225.29,7.33]
[1759405248474,7.84,225.34,225.28,5.35347115]
[1759405248674,1.10879171,225.33,225.29,7.33]
[1759405248877,1.10879171,225.32,225.29,7.33]
[1759405249181,7.84,225.34,225.28,5.35347115]
[1759405249374,1.10879171,225.33,225.28,5.35347115]
[1759405249575,1.10879171,225.32,225.28,5.35347115]
[1759405249772,7.84,225.34,225.29,7.33]
[1759405249977,1.10879171,225.33,225.29,7.33]
[1759405250181,1.10879171,225.32,225.29,7.33]
[1759405250375,7.84,225.34,225.28,5.35347115]
[1759405250576,1.10879171,225.33,225.29,7.33]
[1759405250876,1.10879171,225.32,225.28,5.35347115]
[1759405251080,7.84,225.38,225.31,7.33]
[1759405251284,4.25925013,225.37,225.31,7.33]
[1759405251573,4.25925013,225.36,225.31,7.33]
[1759405251774,4.25925013,225.35,225.31,7.33]
[1759405252080,1.10877615,225.34,225.3,1.36057115]
[1759405252280,1.10877615,225.33,225.31,7.33]
[1759405252473,3.15023818,225.36,225.3,1.36057115]
[1759405252671,8.94871041,225.35,225.3,5.35307115]
[1759405252870,1.10871041,225.34,225.31,7.33]
[1759405253080,1.10871041,225.33,225.31,7.33]
[1759405253276,7.84,225.36,225.3,8.69057115]
[1759405253475,8.94874403,225.35,225.3,1.36057115]
[1759405253674,1.10874403,225.34,225.31,7.33]
[1759405253876,1.10874403,225.33,225.3,1.36057115]
[1759405254076,7.84,225.35,225.3,1.36057115]
[1759405254279,1.10874403,225.34,225.31,7.21]
[1759405254480,1.10874403,225.33,225.31,7.21]
[1759405254680,7.84,225.35,225.3,1.36057115]
[1759405254981,1.10874403,225.34,225.3,1.36057115]
[1759405255183,1.10874403,225.33,225.3,1.36057115]
[1759405255370,7.84,225.35,225.3,1.36057115]
[1759405255575,1.10874405,225.34,225.29,3.9927]
[1759405255775,1.10874405,225.33,225.3,7.21]
[1759405255975,7.2,225.36,225.3,7.21]
[1759405256176,1.10874405,225.35,225.3,7.21]
[1759405256380,1.10874405,225.34,225.29,5.35327115]
[1759405256683,1.10874405,225.33,225.31,7.21]
[1759405256984,7.2,225.37,225.31,7.21]
[1759405257282,4.2592397,225.36,225.3,7.21]
[1759405257484,1.10874318,225.35,225.29,1.36057115]
[1759405257680,1.10874318,225.34,225.29,1.36057115]
[1759405257883,1.10874318,225.33,225.29,1.36057115]
[1759405258085,7.2,225.36,225.3,7.21]
[1759405258286,1.10874318,225.35,225.3,7.21]
[1759405258484,1.10874318,225.34,225.3,7.21]
[1759405258686,1.10874318,225.33,225.32,7.21]
[1759405264286,5.35177115,225.39,225.32,7.21]
[1759405264588,11.45813943,225.38,225.32,7.21]
[1759405264789,4.25813943,225.37,225.32,7.21]
[1759405264987,1.10871131,225.36,225.32,7.21]
[1759405265188,1.10871131,225.35,225.32,7.21]
[1759405265387,1.10871131,225.34,225.32,7.21]
[1759405265590,3.14925847,225.39,225.32,7.21]
[1759405265786,4.2579474,225.38,225.32,7.21]
[1759405266093,8.30868893,225.37,225.33,7.21]
[1759405266295,1.10868893,225.36,225.32,3.9922]
[1759405266487,1.10868893,225.35,225.32,3.9922]
[1759405266789,7.2,225.37,225.33,7.21]
[1759405266995,1.10868291,225.36,225.32,3.9922]
[1759405267288,2.68963159,225.42,225.34,7.21]
[1759405267487,4.2563882,225.41,225.35,1.36057115]
[1759405267687,1.10854255,225.4,225.36,7.21]
[1759405267886,1.10854255,225.39,225.35,1.36057115]
[1759405268084,1.10854255,225.38,225.36,3.9915]
[1759405268285,3.14779946,225.42,225.36,3.9915]
[1759405268487,1.10849373,225.41,225.35,1.36057115]
[1759405268691,1.10849373,225.4,225.36,7.21]
[1759405268889,1.10849373,225.39,225.35,1.36057115]
[1759405269089,7.2,225.43,225.36,7.21]
[1759405269288,1.10839492,225.42,225.36,7.21]
[1759405269489,1.10839492,225.41,225.35,5.35217115]
[1759405269684,1.10839492,225.4,225.36,7.21]
[1759405269891,7.2,225.43,225.36,7.21]
[1759405270193,1.10839429,225.42,225.36,7.21]
[1759405270386,1.10839429,225.41,225.36,7.21]
[1759405270588,1.10839429,225.4,225.35,5.35217115]
[1759405270785,7.2,225.43,225.36,7.21]
[1759405270985,1.10841128,225.42,225.36,11.2014]
[1759405271187,8.30841128,225.41,225.36,3.9914]
[1759405271384,7.2,225.41,225.36,3.9914]
[1759405271585,1.1084274,225.4,225.37,7.21]
[1759405271787,7.2,225.41,225.36,3.9914]
[1759405272090,1.1084274,225.4,225.37,7.21]
[1759405272288,7.2,225.41,225.37,7.21]
[1759405272495,7.2,225.41,225.36,3.9914]
[1759405273490,5.35057115,225.45,225.37,7.21]
[1759405273691,8.30840351,225.44,225.37,7.21]
[1759405273994,1.10840351,225.43,225.37,7.21]
[1759405274194,1.10840351,225.42,225.37,7.21]
[1759405274396,7.2,225.43,225.37,7.21]
[1759405274596,1.10840288,225.42,225.37,7.21]
[1759405274797,7.2,225.43,225.37,7.21]
[1759405274991,1.10840288,225.42,225.36,3.9914]
[1759405275200,7.2,225.43,225.37,7.21]
[1759405275399,8.30840288,225.42,225.37,1.36057115]
[1759405275595,7.2,225.42,225.38,7.21]
[1759405275895,7.2,225.42,225.37,1.36057115]
[1759405276095,7.2,225.42,225.38,7.21]
[1759405276895,7.2,225.42,225.37,1.36057115]
[1759405277097,7.2,225.42,225.38,7.21]
[1759405277795,7.2,225.42,225.37,1.36057115]
[1759405278801,7.2,225.44,225.37,8.57057115]
[1759405279095,1.10837447,225.43,225.37,8.57057115]
[1759405279300,7.2,225.44,225.37,8.57057115]
[1759405279495,1.10836462,225.43,225.37,8.57057115]
[1759405279699,7.2,225.43,225.37,8.57057115]
[1759405279903,7.2,225.41,225.34,1.36057115]
[1759405280098,7.2,225.41,225.35,7.21]
[1759405282700,7.2,225.41,225.35,3.9916]
[1759405283005,7.6,225.43,225.37,7.36]
[1759405283200,7.6,225.41,225.37,7.36]
[1759405283407,7.6,225.43,225.37,7.36]
[1759405283601,7.6,225.41,225.37,7.36]
[1759405283807,7.6,225.43,225.37,7.36]
[1759405284008,1.1084156,225.42,225.37,7.36]
[1759405284212,7.75,225.43,225.37,7.36]
[1759405284410,5.35077115,225.44,225.37,7.36]
[1759405284411,1.1084156,225.42,225.37,7.36]
[1759405284604,7.75,225.4,225.37,7.36]
[1759405285310,7.75,225.4,225.37,7.51]
[1759405285508,7.75,225.4,225.36,5.35197115]
[1759405286009,7.75,225.4,225.37,7.51]
[1759405286510,11.7402,225.44,225.37,7.51]
[1759405286714,1.10841495,225.43,225.37,7.51]
[1759405287008,8.85841495,225.42,225.37,7.51]
[1759405287311,7.75,225.42,225.37,7.51]
[1759405287513,10.88630166,225.45,225.37,7.51]
[1759405287712,7.75,225.43,225.37,7.51]
[1759405287912,7.75,225.41,225.36,3.9914]
[1759405288309,7.75,225.44,225.37,3.9913]
[1759405288507,1.10840743,225.43,225.38,7.51]
[1759405288708,1.10840743,225.42,225.37,3.9913]
[1759405288909,7.75,225.44,225.38,7.51]
[1759405289108,1.10840631,225.43,225.38,7.51]
[1759405289415,1.10840631,225.42,225.37,3.9913]
[1759405289713,7.75,225.44,225.38,7.51]
[1759405289913,1.10836925,225.43,225.38,7.51]
[1759405290110,1.10836925,225.42,225.38,7.51]
[1759405290310,7.75,225.44,225.38,7.51]
[1759405290510,1.10836925,225.43,225.37,3.9913]
[1759405290712,8.85836925,225.42,225.37,3.9913]
[1759405290914,7.75,225.42,225.37,3.9913]
[1759405291116,7.75,225.42,225.38,7.51]
[1759405291407,7.75,225.42,225.37,3.9913]
[1759405291810,7.75,225.42,225.38,7.51]
[1759405292015,7.75,225.45,225.38,7.51]
[1759405292214,7.75,225.43,225.37,11.5013]
[1759405292417,7.75,225.41,225.38,7.51]
[1759405292613,7.75,225.42,225.35,3.9917]
[1759405292818,7.75,225.42,225.35,11.5017]
[1759405293017,7.75,225.42,225.35,7.51]
[1759405293917,7.75,225.42,225.33,2.12441491]
[1759405294119,7.75,225.42,225.35,7.51]
[1759405294520,7.75,225.42,225.36,7.51]
[1759405294719,7.75,225.42,225.36,11.5015]
[1759405296220,7.75,225.44,225.37,11.5013]
[1759405296409,1.10836905,225.43,225.37,11.5013]
[1759405296613,8.85836905,225.42,225.38,7.51]
[1759405296920,7.75,225.44,225.38,7.51]
[1759405297121,7.75,225.42,225.38,7.51]
[1759405297320,7.75,225.42,225.38,3.9911]
[1759405298012,7.75,225.46,225.4,7.51]
[1759405298218,7.75,225.5,225.42,7.51]
[1759405298416,7.75,225.48,225.39,45.74]
[1759405298718,7.75,225.46,225.39,45.74]
[1759405299115,7.75,225.46,225.38,11.5011]
[1759405299420,7.75,225.46,225.38,86.3811]
[1759405299811,7.75,225.49,225.38,11.5011]
[1759405300016,2.12441491,225.5,225.38,7.51]
[1759405300017,7.75,225.47,225.38,7.51]
[1759405300216,7.75,225.45,225.38,7.51]
[1759405301922,7.75,225.45,225.38,11.5011]
[1759405306031,7.75,225.45,225.4,7.51]
[1759405306326,10.87870747,225.48,225.4,7.51]
[1759405306530,4.23698237,225.47,225.4,7.51]
[1759405306829,7.75,225.48,225.4,7.51]
[1759405306830,1.1082749,225.46,225.4,7.51]
[1759405307030,7.75,225.48,225.4,7.51]
[1759405307227,4.23750609,225.47,225.4,7.51]
[1759405307432,4.23817469,225.46,225.41,7.51]
[1759405307630,7.75,225.48,225.41,7.51]
[1759405307830,4.23817469,225.47,225.41,7.51]
[1759405308030,4.23817469,225.46,225.4,3.9907]
[1759405308335,7.75,225.48,225.41,7.51]
[1759405308631,4.23885096,225.47,225.41,7.51]
[1759405308836,1.1082749,225.46,225.4,3.9907]
[1759405309034,7.75,225.48,225.41,7.51]
[1759405309236,4.23882747,225.47,225.41,7.51]
[1759405309433,4.23882747,225.46,225.42,3.9905]
[1759405309639,7.75,225.48,225.43,7.51]
[1759405309935,4.23960515,225.47,225.43,7.51]
[1759405310141,7.75,225.48,225.42,3.9905]
[1759405310440,7.75,225.48,225.43,7.51]
[1759405310642,7.75,225.48,225.42,3.9905]
[1759405310839,7.75,225.48,225.43,7.51]
[1759405311339,3.989,225.51,225.42,3.9905]
[1759405311539,11.98988628,225.5,225.42,11.5005]
[1759405311733,4.23988628,225.49,225.42,11.5005]
[1759405311932,4.23988628,225.48,225.42,11.5005]
[1759405312132,7.75,225.5,225.42,11.5005]
[1759405312332,4.23995014,225.49,225.42,11.5005]
[1759405312536,4.23995014,225.48,225.42,11.5005]
[1759405312736,7.75,225.5,225.42,11.5005]
[1759405312936,4.23994742,225.49,225.42,11.5005]
[1759405313250,4.23994742,225.48,225.42,11.5005]
[1759405313537,11.7392,225.5,225.42,11.5005]
[1759405313741,4.23986184,225.49,225.42,11.5005]
[1759405313942,4.23986184,225.48,225.42,11.5005]
[1759405314237,11.7392,225.5,225.42,11.5005]
[1759405314448,4.23947953,225.49,225.42,11.5005]
[1759405314742,4.23947953,225.48,225.42,11.5005]
[1759405314942,11.7392,225.5,225.42,11.5005]
[1759405315149,4.23947953,225.49,225.42,11.5005]
[1759405315441,4.23947953,225.48,225.42,11.5005]
[1759405315644,11.7392,225.5,225.42,11.5005]
[1759405315843,4.23916491,225.49,225.42,11.5005]
[1759405316144,4.23916491,225.48,225.42,11.5005]
[1759405316344,11.7392,225.5,225.42,11.5005]
[1759405316547,4.23889777,225.49,225.42,11.5005]
[1759405316735,4.23894525,225.48,225.42,11.5005]
[1759405316940,11.7392,225.5,225.42,11.5005]
[1759405317243,4.23896161,225.49,225.42,11.5005]
[1759405317444,11.7392,225.5,225.42,11.5005]
[1759405317646,4.23871902,225.49,225.42,11.5005]
[1759405317842,11.7392,225.5,225.42,11.5005]
[1759405318039,4.23871902,225.49,225.42,11.5005]
[1759405318240,4.23878286,225.48,225.42,11.5005]
[1759405318544,11.7392,225.5,225.42,11.5005]
[1759405318732,4.23868374,225.49,225.42,11.5005]
[1759405318936,4.23868374,225.48,225.42,11.5005]
[1759405319133,11.7392,225.5,225.42,11.5005]
[1759405319337,4.2386199,225.49,225.42,11.5005]
[1759405319539,11.7392,225.5,225.42,11.5005]
[1759405319737,4.23837708,225.49,225.42,11.5005]
[1759405319936,4.23837708,225.48,225.42,11.5005]
[1759405320146,11.7392,225.5,225.42,11.5005]
[1759405320339,4.23844091,225.49,225.42,11.5005]
[1759405320638,11.7392,225.5,225.42,11.5005]
[1759405320834,4.23834705,225.49,225.42,11.5005]
[1759405321143,11.7392,225.5,225.42,11.5005]
[1759405321339,4.23834705,225.49,225.42,11.5005]
[1759405321539,4.23824511,225.48,225.42,11.5005]
[1759405321742,11.7392,225.5,225.42,11.5005]
[1759405321944,4.23824511,225.49,225.42,11.5005]
[1759405322241,1.10814831,225.48,225.43,7.66]
[1759405322442,7.79,225.49,225.43,7.66]
[1759405322639,1.10814831,225.48,225.42,3.9905]
[1759405322844,7.79,225.49,225.39,7.66]
[1759405323149,7.79,225.53,225.42,7.66]
[1759405323338,4.23790046,225.52,225.45,7.66]
[1759405323538,4.23790046,225.51,225.45,7.66]
[1759405323750,7.79,225.53,225.45,7.66]
[1759405323949,4.23750586,225.52,225.45,7.66]
[1759405324143,7.79,225.53,225.45,7.66]
[1759405324350,7.79,225.53,225.49,7.66]
[1759405324948,7.79,225.56,225.49,7.66]
[1759405325148,7.79,225.54,225.49,7.66]
[1759405325451,3.12762397,225.53,225.46,11.6498]
[1759405325652,7.79,225.54,225.46,11.6498]
[1759405325847,4.23573802,225.53,225.46,11.6498]
[1759405326039,7.79,225.54,225.46,11.6498]
[1759405326245,4.23561047,225.53,225.46,11.6498]
[1759405326444,7.79,225.54,225.46,11.6498]
[1759405326639,4.23507728,225.53,225.46,11.6498]
[1759405326847,7.79,225.54,225.46,11.6498]
[1759405327050,4.23507728,225.53,225.46,11.6498]
[1759405327243,7.79,225.54,225.46,11.6498]
[1759405327443,3.12674689,225.53,225.46,11.6498]
[1759405327645,7.79,225.54,225.46,11.6498]
[1759405327842,4.23481349,225.53,225.46,11.6498]
[1759405328047,7.79,225.54,225.47,7.66]
[1759405328245,3.12684171,225.53,225.47,11.6495]
[1759405328446,7.79,225.54,225.47,11.6495]
[1759405328646,3.12654549,225.53,225.47,11.6495]
[1759405328946,7.79,225.54,225.47,11.6495]
[1759405331553,7.79,225.54,225.47,7.66]
[1759405336052,7.79,225.57,225.48,2.12441491]
[1759405336249,7.79,225.61,225.52,7.66]
[1759405336557,4.23453247,225.6,225.52,7.66]
[1759405336763,3.12666958,225.59,225.52,7.66]
[1759405336951,1.1076918,225.6,225.52,7.66]
[1759405337152,7.79,225.61,225.52,7.66]
[1759405337457,4.23276111,225.6,225.52,7.66]
[1759405337655,7.79,225.61,225.52,7.66]
[1759405337857,4.2328832,225.6,225.52,7.66]
[1759405338057,7.79,225.61,225.52,7.66]
[1759405338355,4.23194191,225.6,225.52,7.66]
[1759405338550,1.1076918,225.6,225.52,7.66]
[1759405339254,7.79,225.61,225.54,2.12441491]
[1759405339460,7.79,225.61,225.55,7.66]
[1759405340961,1.10767853,225.6,225.54,9.78441491]
[1759405341160,8.89767853,225.59,225.55,7.66]
[1759405341363,1.10767853,225.58,225.54,2.12441491]
[1759405341661,1.10767853,225.57,225.55,7.66]
[1759405341855,1.10767853,225.56,225.55,7.66]
[1759405343062,4.22996247,225.61,225.55,7.66]
[1759405343268,4.22996247,225.62,225.55,7.66]
[1759405343664,4.22996247,225.62,225.55,11.6481]
[1759405344857,4.22996247,225.62,225.55,3.9881]
[1759405345064,7.79,225.63,225.56,7.88]
[1759405345265,1.10767853,225.62,225.56,7.88]
[1759405345565,7.79,225.63,225.56,7.88]
[1759405345863,12.01814368,225.63,225.56,7.88]
[1759405346364,12.01814368,225.63,225.57,1.35706895]
[1759405349764,7.79,225.63,225.57,1.35706895]
[1759405351773,7.53,225.63,225.57,9.23706895]
[1759405363576,7.53,225.63,225.57,7.88]
[1759405366777,10.64747191,225.63,225.57,7.88]
[1759405367381,11.75503323,225.63,225.57,7.88]
[1759405368181,8.63756132,225.63,225.57,7.88]
[1759405370178,1.35706895,225.58,225.52,7.88]
[1759405370380,7.53,225.55,225.48,7.88]
[1759405370585,7.53,225.51,225.46,3.83897355]
[1759405370880,7.53,225.49,225.42,7.88]
[1759405372971,7.53,225.49,225.41,1.35706895]
[1759405373379,7.53,225.49,225.43,1.35706895]
[1759405373882,7.53,225.49,225.44,7.19]
[1759405374080,7.53,225.49,225.43,1.35706895]
[1759405374280,7.53,225.49,225.44,7.19]
[1759405374580,7.53,225.49,225.43,8.54706895]
[1759405375280,8.88706895,225.49,225.43,7.19]
[1759405375485,7.8,225.48,225.41,13.15878736]
[1759405375683,7.8,225.48,225.39,12.53806895]
[1759405376574,7.8,225.48,225.42,7.19]
[1759405378483,9.15706895,225.51,225.44,7.19]
[1759405379281,7.8,225.51,225.44,7.19]
[1759405379578,1.35706895,225.53,225.46,7.19]
[1759405379887,7.8,225.54,225.47,1.35706895]
[1759405380880,7.8,225.54,225.49,1.35706895]
[1759405381079,7.8,225.54,225.5,7.19]
[1759405381679,7.8,225.56,225.5,7.19]
[1759405382880,7.8,225.56,225.51,1.35706895]
[1759405383086,7.8,225.58,225.51,8.54706895]
[1759405383385,10.91681647,225.59,225.53,1.35706895]
[1759405383581,7.8,225.59,225.53,1.35706895]
[1759405383787,7.8,225.59,225.52,7.19]
[1759405383988,7.8,225.59,225.52,8.54706895]
[1759405396389,11.7876,225.59,225.52,8.54706895]
[1759405396886,3.9879,225.57,225.52,7.19]
[1759405397191,7.8,225.56,225.47,1.35706895]
[1759405397589,8.90784525,225.56,225.47,1.35706895]
[1759405397785,12.02346273,225.56,225.47,1.35706895]
[1759405397985,3.9884,225.54,225.47,1.35706895]
[1759405398185,7.8,225.53,225.47,1.35706895]
[1759405402893,1.35706895,225.53,225.45,7.19]
[1759405403093,7.16,225.52,225.45,7.19]
[1759405403689,3.989,225.51,225.45,7.19]
[1759405404689,7.51,225.5,225.45,7.19]
[1759405404895,3.989,225.51,225.45,7.19]
[1759405405791,7.51,225.5,225.45,7.19]
[1759405405998,3.989,225.51,225.45,7.19]
[1759405406590,7.51,225.5,225.44,8.80706895]
[1759405408293,7.51,225.5,225.44,7.45]
[1759405408494,7.51,225.51,225.41,330.05]
[1759405408695,4.22565494,225.51,225.41,330.05]
[1759405409292,7.51,225.47,225.41,330.05]
[1759405410607,7.51,225.51,225.42,7.45]
[1759405411605,11.4991,225.51,225.42,7.45]
[1759405411805,9.63274339,225.59,225.44,7.45]
[1759405412002,7.51,225.57,225.44,7.45]
[1759405412200,7.51,225.55,225.44,7.45]
[1759405412506,10.6278708,225.55,225.44,7.45]
[1759405412707,7.51,225.55,225.44,7.45]
[1759405413405,7.51,225.55,225.47,11.4395]
[1759405414203,7.51,225.55,225.46,107.64]
[1759405414204,7.51,225.55,225.49,7.45]
[1759405415905,3.988,225.57,225.49,7.45]
[1759405416101,7.51,225.58,225.5,7.45]
[1759405416102,4.22831958,225.56,225.5,7.45]
[1759405416296,4.22797056,225.57,225.5,7.45]
[1759405416506,7.51,225.58,225.5,7.45]
[1759405416708,4.22796717,225.57,225.5,7.45]
[1759405416908,7.51,225.58,225.5,7.45]
[1759405417112,4.22796717,225.57,225.5,7.45]
[1759405417314,7.51,225.58,225.5,7.45]
[1759405417509,4.22803086,225.57,225.5,7.45]
[1759405417705,7.51,225.58,225.5,11.439]
[1759405418008,1.10779452,225.57,225.5,11.439]
[1759405418204,7.51,225.58,225.5,11.439]
[1759405418406,4.22815895,225.57,225.5,11.439]
[1759405418609,7.51,225.58,225.5,11.439]
[1759405418808,4.22815895,225.57,225.5,11.439]
[1759405419014,7.51,225.58,225.5,11.439]
[1759405419219,4.22815895,225.57,225.5,11.439]
[1759405419405,7.51,225.58,225.5,11.439]
[1759405419605,4.22822473,225.57,225.5,11.439]
[1759405419816,7.51,225.58,225.5,11.439]
[1759405420015,4.22822473,225.57,225.5,11.439]
[1759405420217,7.51,225.58,225.5,11.439]
[1759405420412,4.2283414,225.57,225.5,11.439]
[1759405420716,7.51,225.58,225.5,11.439]
[1759405420918,4.22834236,225.57,225.5,11.439]
[1759405421218,7.51,225.58,225.5,11.439]
[1759405421416,4.22863655,225.57,225.5,11.439]
[1759405421616,7.51,225.58,225.5,11.439]
[1759405421919,4.22863655,225.57,225.5,11.439]
[1759405422117,7.51,225.58,225.5,11.439]
[1759405422313,4.22889334,225.57,225.5,11.439]
[1759405422616,7.51,225.58,225.52,7.45]
[1759405422915,4.2221585,225.57,225.51,3.9888]
[1759405423115,7.51,225.58,225.52,7.45]
[1759405423315,4.22245336,225.57,225.51,3.9888]
[1759405423516,7.51,225.58,225.52,7.45]
[1759405423719,4.22245624,225.57,225.51,3.9888]
[1759405423917,7.51,225.59,225.52,7.45]
[1759405424117,4.22245529,225.58,225.52,7.45]
[1759405424313,1.10779428,225.57,225.51,3.9888]
[1759405424519,7.51,225.59,225.52,7.45]
[1759405424719,4.22258363,225.58,225.52,7.45]
[1759405424920,8.61776158,225.57,225.51,3.9888]
[1759405425114,7.51,225.57,225.51,3.9888]
[1759405425321,7.51,225.57,225.52,7.45]
[1759405425920,7.51,225.57,225.51,3.9888]
[1759405427422,7.51,225.57,225.52,7.45]
[1759405427617,7.51,225.57,225.51,3.9888]
[1759405428024,7.51,225.57,225.52,7.45]
[1759405428324,7.51,225.57,225.51,3.9888]
[1759405428718,7.51,225.57,225.52,7.45]
[1759405428918,7.51,225.57,225.51,3.9888]
[1759405429424,7.51,225.57,225.52,7.45]
[1759405431024,7.51,225.57,225.51,11.4388]
[1759405432326,7.51,225.57,225.52,7.45]
[1759405432722,7.51,225.57,225.51,3.9888]
[1759405433128,7.51,225.57,225.52,7.45]
[1759405433527,7.51,225.57,225.51,3.9888]
[1759405434030,7.43,225.59,225.52,7.53]
[1759405434230,4.22250568,225.58,225.52,7.53]
[1759405434530,7.43,225.59,225.52,7.53]
[1759405434733,4.22252906,225.58,225.52,7.53]
[1759405435023,7.43,225.59,225.52,7.53]
[1759405435227,4.2225956,225.58,225.52,7.53]
[1759405435428,7.43,225.59,225.52,7.53]
[1759405435625,4.22259559,225.58,225.52,7.53]
[1759405435827,7.43,225.59,225.52,7.53]
[1759405436026,4.22259559,225.58,225.52,7.53]
[1759405436229,7.43,225.59,225.52,7.53]
[1759405436527,4.22266302,225.58,225.52,7.53]
[1759405436723,1.10776132,225.57,225.51,3.9888]
[1759405436931,1.10776132,225.57,225.52,7.53]
[1759405436932,7.43,225.57,225.52,7.53]
[1759405437326,7.43,225.57,225.51,3.9888]
[1759405437533,7.43,225.57,225.52,7.53]
[1759405437726,7.43,225.57,225.51,3.9888]
[1759405437934,7.43,225.57,225.52,7.53]
[1759405438132,7.43,225.59,225.52,7.53]
[1759405438333,4.22280061,225.58,225.52,7.53]
[1759405438534,1.10776132,225.57,225.52,7.53]
[1759405438833,7.43,225.58,225.52,7.53]
[1759405439029,7.43,225.56,225.52,7.53]
[1759405439333,7.43,225.58,225.52,7.53]
[1759405439536,7.43,225.56,225.51,107.62]
[1759405439831,7.43,225.58,225.52,7.53]
[1759405440033,7.43,225.56,225.53,7.53]
[1759405441126,7.43,225.57,225.53,7.53]
[1759405441333,7.43,225.57,225.51,115.15]
[1759405442535,7.43,225.57,225.51,7.53]
[1759405442929,7.43,225.57,225.51,91.69]
[1759405446536,7.43,225.57,225.51,7.53]
[1759405446743,7.43,225.57,225.51,115.13]
[1759405450639,7.43,225.57,225.51,7.53]
[1759405450839,7.43,225.58,225.52,115.13]
[1759405451039,4.22360313,225.57,225.48,7.53]
[1759405451242,7.43,225.55,225.46,21.36]
[1759405451437,7.43,225.53,225.46,21.36]
[1759405451641,7.43,225.52,225.46,21.36]
[1759405452144,7.43,225.52,225.45,7.53]
[1759405452343,7.43,225.52,225.45,115.13]
[1759405452644,7.43,225.52,225.45,119.1199]
[1759405454640,7.43,225.52,225.45,11.5199]